fUSD/lending_fUSD_20260107
["ID","MTS","AMOUNT","RATE_DAILY","PERIOD"]
[400745899,1767809446189,-300.0,0.00017938,2]
[400745901,1767809446198,-300.0,0.00017939,2]
[400745903,1767809446208,-300.0,0.0001794,2]
[400745904,1767809446217,-300.0,0.00017945,2]
[400745906,1767809446227,-300.0,0.00017945,2]
[400745908,1767809446236,-300.0,0.00017948,2]
[400745909,1767809446245,-150.0,0.0001795,2]
[400745911,1767809446255,-150.0,0.0001795,2]
[400745913,1767809446264,-300.0,0.00017951,2]
[400745915,1767809446273,-150.0,0.00017952,2]
[400745916,1767809446282,-150.0,0.00017953,2]
[400745918,1767809446291,-300.0,0.00017953,2]
[400745920,1767809446300,-300.0,0.00017955,2]
[400745922,1767809446309,-150.0,0.00017956,2]
[400745923,1767809446318,-300.0,0.00017957,2]
[400745924,1767809446327,-155.2,0.00017959,2]
[400745925,1767809446337,-300.0,0.00017959,2]
[400745926,1767809446346,-300.0,0.00017959,2]
[400745927,1767809446355,-300.0,0.0001796,2]
[400745928,1767809446365,-300.0,0.00017961,2]
[400745929,1767809446374,-300.0,0.00017961,2]
[400745930,1767809446384,-300.0,0.00017962,2]
[400745931,1767809446393,-300.0,0.00017962,2]
[400745932,1767809446402,-300.0,0.00017964,2]
[400745933,1767809446412,-300.0,0.00017966,2]
[400745934,1767809446423,-150.0,0.00017967,2]
[400745935,1767809446434,-1000.0,0.0001797,2]
[400745936,1767809446444,-1000.0,0.0001797,2]
[400745937,1767809446454,-1109.90852601,0.0001797,2]
[400745938,1767809446464,-300.0,0.0001797,2]
[400745939,1767809446474,-1000.0,0.0001797,2]
[400745940,1767809446484,-983.46328676,0.0001797,2]
[400745941,1767809446495,-300.0,0.0001797,2]
[400745942,1767809446504,-150.0,0.00017973,2]
[400745943,1767809446514,-150.0,0.00017974,2]
[400745944,1767809446523,-300.0,0.00017975,2]
[400745945,1767809446533,-604.2212164,0.00017977,2]
[400745946,1767809446544,-500.0,0.00017977,2]
[400745947,1767809446553,-872.0,0.00017977,2]
[400745948,1767809446562,-500.0,0.00017977,2]
[400745949,1767809446573,-300.0,0.00017979,2]
[400745950,1767809446583,-300.0,0.00017983,2]
[400745951,1767809446592,-1455.64956121,0.0001799,2]
[400745952,1767809446602,-1455.64956121,0.0001799,2]
[400745953,1767809446611,-217.54835589,0.00017992,2]
[400745954,1767809446620,-300.0,0.00017997,2]
[400745955,1767809446630,-151.0,0.00017997,2]
[400745956,1767809446639,-300.0,0.00017998,2]
[400745957,1767809446650,-300.0,0.00017999,2]
[400745958,1767809446659,-199.69779927,0.00017999,2]
[400745959,1767809446668,-300.0,0.00017999,2]
[400745961,1767809446677,-666.0,0.00017999,2]
[400745963,1767809446686,-500.0,0.00017999,2]
[400745964,1767809446695,-500.0,0.00017999,2]
[400745965,1767809446705,-500.0,0.00017999,2]
[400745966,1767809446714,-500.0,0.00017999,2]
[400745967,1767809446723,-500.0,0.00017999,2]
[400745968,1767809446732,-500.0,0.00017999,2]
[400745969,1767809446741,-500.0,0.00017999,2]
[400745970,1767809446750,-500.0,0.00017999,2]
[400745971,1767809446759,-418.72652128,0.00017999,2]
[400745972,1767809446767,-150.1,0.00017999,2]
[400745974,1767809446776,-150.1,0.00017999,2]
[400745975,1767809446785,-300.0,0.00017999,2]
[400745977,1767809446795,-150.1,0.00017999,2]
[400745979,1767809446803,-163.90468149,0.00017999,2]
[400745980,1767809446812,-666.0,0.00017999,2]
[400745982,1767809446821,-300.0,0.00017999,2]
[400745984,1767809446830,-666.0,0.00017999,2]
[400745986,1767809446839,-300.0,0.00017999,2]
[400745988,1767809446848,-666.0,0.00017999,2]
[400745990,1767809446858,-300.0,0.00017999,2]
[400745991,1767809446867,-5826.21400436,0.00017999,2]
[400745993,1767809446876,-5524734.98334201,0.00018,2]
[400745994,1767809446890,-7389.36454677,0.00018,2]
[400745995,1767809447016,-2576.0915,0.00018,2]
[400745996,1767809447336,205.56126001,0.00015166,2]
[400745997,1767809448377,-3170.61829606,0.00017794,2]
[400745998,1767809448387,-2911.18170385,0.0001782,2]
[400745999,1767809448402,-259.43659221,0.0001782,2]
[400746000,1767809448422,-2835.25448786,0.00017847,2]
[400746001,1767809448437,-335.3638082,0.00017847,2]
[400746002,1767809448447,-866.58259631,0.00017873,2]
[400746003,1767809448463,-2304.03569975,0.00017873,2]
[400746004,1767809448473,-16568.76875457,0.00018,2]
[400746005,1767809448519,-2214.48327384,0.000179,2]
[400746006,1767809448529,-7438.7561393,0.00018,2]
[400746007,1767809448541,-614.08054182,0.00018,2]
[400746008,1767809448601,-12986.48553838,0.00018,2]
[400746009,1767809448637,-564.11572434,0.00018,2]
[400746010,1767809448650,-2590.80063541,0.00018,2]
[400746011,1767809448662,-386141.08476968,0.00018,2]
[400746012,1767809450009,-151.0,0.0001627,2]
[400746013,1767809450019,-151.0,0.0001627,2]
[400746014,1767809450028,-1206.69249275,0.00017119,2]
[400746015,1767809450386,-205.56126001,0.00016142,2]
[400746016,1767809450395,-81.76109252,0.00017119,2]
[400746017,1767809450408,-371.93655186,0.00017119,2]
[400746018,1767809450418,-6551.0,0.00017717,2]
[400746019,1767809450430,-300.0,0.00017805,2]
[400746020,1767809450444,-300.0,0.00017896,2]
[400746021,1767809450456,-3170.61829606,0.000179,2]
[400746022,1767809450467,-7962.22933154,0.00018,2]
[400746023,1767809451789,-300.0,0.00017722,2]
[400746024,1767809451799,-300.0,0.00017722,2]
[400746025,1767809451809,-300.0,0.00017727,2]
[400746026,1767809451819,-300.0,0.00017731,2]
[400746027,1767809451828,-300.0,0.00017732,2]
[400746028,1767809451837,-300.0,0.00017733,2]
[400746029,1767809451847,-300.0,0.00017735,2]
[400746030,1767809451857,-300.0,0.00017746,2]
[400746031,1767809451866,-300.0,0.00017748,2]
[400746032,1767809451875,-300.0,0.00017752,2]
[400746033,1767809451885,-300.0,0.00017754,2]
[400746034,1767809451895,-300.0,0.00017766,2]
[400746035,1767809451904,-300.0,0.00017769,2]
[400746036,1767809451913,-300.0,0.00017769,2]
[400746037,1767809451923,-300.0,0.0001777,2]
[400746038,1767809451932,-300.0,0.00017775,2]
[400746039,1767809451942,-300.0,0.00017776,2]
[400746040,1767809451951,-300.0,0.00017778,2]
[400746041,1767809451960,-300.0,0.00017782,2]
[400746042,1767809451969,-300.0,0.00017791,2]
[400746043,1767809451979,-300.0,0.00017792,2]
[400746044,1767809451988,-300.0,0.00017794,2]
[400746045,1767809451997,-300.0,0.00017803,2]
[400746046,1767809452007,-300.0,0.0001782,2]
[400746047,1767809452016,-300.0,0.00017821,2]
[400746048,1767809452025,-300.0,0.00017828,2]
[400746049,1767809452035,-300.0,0.00017829,2]
[400746050,1767809452044,-300.0,0.00017836,2]
[400746051,1767809452054,-300.0,0.00017849,2]
[400746052,1767809452064,-300.0,0.00017858,2]
[400746053,1767809452073,-300.0,0.00017859,2]
[400746054,1767809452083,-300.0,0.0001786,2]
[400746055,1767809452092,-300.0,0.00017863,2]
[400746056,1767809452101,-300.0,0.00017865,2]
[400746057,1767809452110,-300.0,0.00017872,2]
[400746058,1767809452119,-300.0,0.00017874,2]
[400746059,1767809452129,-300.0,0.00017875,2]
[400746060,1767809452138,-300.0,0.00017878,2]
[400746061,1767809452148,-220.75068873,0.000179,2]
[400746062,1767809452157,-300.0,0.00017901,2]
[400746063,1767809452167,-300.0,0.00017904,2]
[400746064,1767809452176,-300.0,0.00017908,2]
[400746065,1767809452186,-300.0,0.00017914,2]
[400746066,1767809452195,-300.0,0.00017917,2]
[400746067,1767809452204,-300.0,0.00017928,2]
[400746068,1767809452213,-300.0,0.00017933,2]
[400746069,1767809452223,-300.0,0.00017938,2]
[400746070,1767809452232,-300.0,0.00017941,2]
[400746071,1767809452242,-300.0,0.00017942,2]
[400746072,1767809452251,-300.0,0.00017943,2]
[400746073,1767809452261,-300.0,0.00017953,2]
[400746074,1767809452271,-300.0,0.00017957,2]
[400746075,1767809452280,-300.0,0.00017961,2]
[400746076,1767809452289,-300.0,0.00017968,2]
[400746077,1767809452298,-300.0,0.00017978,2]
[400746078,1767809452308,-300.0,0.0001798,2]
[400746079,1767809452317,-300.0,0.00017981,2]
[400746080,1767809452326,-300.0,0.00017981,2]
[400746081,1767809452336,-300.0,0.00017982,2]
[400746082,1767809452346,-300.0,0.00017984,2]
[400746083,1767809452356,-300.0,0.00017988,2]
[400746084,1767809452365,-300.0,0.00017991,2]
[400746085,1767809452375,-251944.62713499,0.00018,2]
[400746086,1767809452439,-300.0,0.00017798,2]
[400746087,1767809452449,-300.0,0.00017905,2]
[400746088,1767809452458,-690.81899129,0.00018,2]
[400746089,1767809452470,-4623.0712075,0.00018,2]
[400746090,1767809452610,-300.0,0.00017725,2]
[400746091,1767809452619,-300.0,0.00017907,2]
[400746092,1767809452629,-307.20020424,0.00017918,2]
[400746093,1767809452638,-300.0,0.00017932,2]
[400746094,1767809452647,-148.42344616,0.00017938,2]
[400746095,1767809458886,1118.95,0.0001472,2]
[400746096,1767809460026,5175.4583,0.00015129,2]
[400746097,1767809490575,632.46030282,0.00015129,2]
[400746098,1767809490598,1671.05689718,0.00015129,2]
[400746099,1767809504928,8328.95310282,0.00015129,2]
[400746100,1767809504956,10000.01,0.00015129,2]
[400746101,1767809504982,10000.01,0.00015129,2]
[400746102,1767809505006,10000.01,0.00015129,2]
[400746103,1767809505031,10000.01,0.00015129,2]
[400746104,1767809505058,10000.01,0.00015129,2]
[400746105,1767809505083,10000.01,0.00015129,2]
[400746106,1767809505109,10000.01,0.00015129,2]
[400746107,1767809505134,10000.01,0.00015129,2]
[400746108,1767809505159,10000.01,0.00015129,2]
[400746109,1767809521402,300.0,0.00015128,2]
[400746110,1767809521848,300.0,0.00015128,2]
[400746111,1767809530271,500.0,0.00015073,2]
[400746118,1767809585367,500.0,0.00015073,2]
[400746119,1767809586044,500.0,0.00015073,2]
[400746120,1767809586137,500.0,0.00015073,2]
[400746126,1767809641764,300.0,0.00015128,2]
[400746127,1767809647074,500.0,0.00015073,2]
[400746128,1767809647255,500.0,0.00015073,2]
[400746129,1767809647484,500.0,0.00015073,2]
[400746130,1767809657417,7200.01,0.00015029,2]
[400746131,1767809657444,10000.01,0.00015029,2]
[400746132,1767809657467,2707.34215076,0.00015029,2]
[400746133,1767809694616,180.93182035,0.00015128,2]
[400746134,1767809694647,500.0,0.00015128,2]
[400746135,1767809694703,242.0770294,0.00015128,2]
[400746136,1767809694923,500.0,0.00015128,2]
[400746137,1767809694993,500.0,0.00015128,2]
[400746138,1767809695464,500.0,0.00015128,2]
[400746139,1767809695559,342.1999851,0.00015128,2]
[400746140,1767809698066,500.0,0.00015128,2]
[400746141,1767809698771,500.0,0.00015128,2]
[400746142,1767809698843,500.0,0.00015128,2]
[400746143,1767809698914,500.0,0.00015128,2]
[400746144,1767809698997,500.0,0.00015128,2]
[400746145,1767809699614,500.0,0.00015128,2]
[400746146,1767809699686,500.0,0.00015128,2]
[400746147,1767809699765,500.0,0.00015128,2]
[400746148,1767809699813,500.0,0.00015128,2]
[400746149,1767809699900,284.49315547,0.00015128,2]
[400746150,1767809699980,500.0,0.00015128,2]
[400746151,1767809700045,500.0,0.00015128,2]
[400746152,1767809700416,500.0,0.00015128,2]
[400746153,1767809700495,500.0,0.00015128,2]
[400746154,1767809701523,450.30800968,0.00015128,2]
[400746155,1767809701548,49.69199032,0.00015128,2]
[400746156,1767809702160,300.0,0.00015128,2]
[400746157,1767809702408,1200.0,0.00015128,2]
[400746158,1767809702510,300.0,0.00015128,2]
[400746159,1767809702808,300.0,0.00015128,2]
[400746160,1767809705322,180.93182035,0.00015128,2]
[400746161,1767809705641,1245.2926029,0.00015029,2]
[400746162,1767809706646,500.0,0.00015073,2]
[400746163,1767809747693,570.13580689,0.00015128,2]
[400746164,1767809780970,191.04010172,0.00015029,2]
[400746165,1767809821259,300.0,0.00015128,2]
[400746166,1767809827127,500.0,0.00015129,2]
[400746167,1767809830462,200.0,0.00015129,2]
[400746168,1767809839038,151.0,0.00015129,2]
[400746169,1767809839674,151.0,0.00015129,2]
[400746170,1767809840232,151.0,0.00015129,2]
[400746171,1767809841083,151.0,0.00015129,2]
[400746172,1767809841526,240.99586171,0.00015129,2]
[400746173,1767809868585,-151.0,0.00015129,2]
[400746174,1767809868770,-151.0,0.00015129,2]
[400746175,1767809871696,-151.0,0.00015129,2]
[400746176,1767809871725,-151.0,0.00015129,2]
[400746177,1767809871752,-151.0,0.00015129,2]
[400746178,1767809871780,-151.0,0.00015129,2]
[400746179,1767809872020,-151.0,0.00015129,2]
[400746180,1767809872688,-151.0,0.00015129,2]
[400746181,1767809873948,-151.0,0.00015129,2]
[400746182,1767809873958,-45.34411192,0.00015129,2]
[400746183,1767809874012,-105.65588808,0.00015129,2]
[400746184,1767809874021,-45.34411192,0.00015129,2]
[400746185,1767809874034,-9698.01,0.00015129,2]
[400746186,1767809874048,-10000.01,0.00015129,2]
[400746187,1767809874107,-10000.01,0.00015129,2]
[400746188,1767809874120,-10000.01,0.00015129,2]
[400746189,1767809874154,-10000.01,0.00015129,2]
[400746190,1767809874189,-10000.01,0.00015129,2]
[400746191,1767809874372,-151.0,0.00015129,2]
[400746192,1767809874419,-9698.01,0.00015129,2]
[400746193,1767809874748,-200.0,0.00015129,2]
[400746194,1767809875298,-9800.01,0.00015129,2]
[400746195,1767809875314,-10000.01,0.00015129,2]
[400746196,1767809875751,-10000.01,0.00015129,2]
[400746197,1767809875825,-200.0,0.00015129,2]
[400746198,1767809875859,-9600.01,0.00015129,2]
[400746199,1767809875917,-10000.01,0.00015129,2]
[400746200,1767809875950,-10000.01,0.00015129,2]
[400746201,1767809875983,-10000.01,0.00015129,2]
[400746202,1767809875997,-10000.01,0.00015129,2]
[400746203,1767809876014,-10000.01,0.00015129,2]
[400746204,1767809876084,-10000.01,0.00015129,2]
[400746205,1767809876135,-10000.01,0.00015129,2]
[400746206,1767809876755,-10000.01,0.00015129,2]
[400746207,1767809876850,-10000.01,0.00015129,2]
[400746208,1767809887537,-500.0,0.00015073,2]
[400746209,1767809887573,-501.56852644,0.00015073,2]
[400746210,1767809893877,-300.0,0.00015128,2]
[400746211,1767809893905,-399.09506483,0.00015128,2]
[400746212,1767809901708,500.0,0.00015128,2]
[400746213,1767809901760,500.0,0.00015128,2]
[400746214,1767809901817,500.0,0.00015128,2]
[400746215,1767809901926,319.42915495,0.00015128,2]
[400746216,1767809912262,169.45392058,0.00015128,2]
[400746217,1767809920188,500.0,0.00015128,2]
[400746218,1767809920365,500.0,0.00015128,2]
[400746219,1767809920463,639.53998957,0.00015128,2]
[400746220,1767809929456,4973.39680524,0.00015029,2]
[400746221,1767809929480,5423.66435048,0.00015029,2]
[400746223,1767809944087,500.0,0.00015073,2]
[400746224,1767809957854,494.54697563,0.00015128,2]
[400746225,1767809960694,3334.2467,0.00015029,2]
[400746226,1767809965934,500.0,0.00015073,2]
[400746227,1767809966702,9500.01,0.00015029,2]
[400746228,1767810001202,300.0,0.00015028,2]
[400746229,1767810001254,1200.0,0.00015028,2]
[400746230,1767810001332,300.0,0.00015028,2]
[400746231,1767810005436,275.0,0.00015029,2]
[400746232,1767810044700,7925.01,0.00015029,2]
[400746233,1767810044724,9991.61593563,0.00015029,2]
[400746234,1767810061288,8.39406437,0.00015028,2]
[400746235,1767810061311,291.60593563,0.00015028,2]
[400746236,1767810062028,300.0,0.00015028,2]
[400746237,1767810063101,1113.5110402,0.00015029,2]
[400746238,1767810063585,300.0,0.00015028,2]
[400746239,1767810082946,7994.89302417,0.00014718,2]
[400746240,1767810082967,10000.01,0.00014718,2]
[400746241,1767810082989,10000.01,0.00014718,2]
[400746242,1767810083012,653.09697583,0.00014718,2]
[400746243,1767810093760,1575.655,0.00014826,2]
[400746244,1767810093831,170.012,0.00014826,2]
[400746245,1767810098023,788.64,0.00014718,2]
[400746246,1767810121304,300.0,0.00015028,2]
[400746247,1767810152604,-8158.34812772,0.00015029,2]
[400746248,1767810153129,-10000.01,0.00015029,2]
[400746249,1767810153261,-10000.01,0.00015029,2]
[400746250,1767810153480,-10000.01,0.00015029,2]
[400746251,1767810154113,-2474.26377228,0.00015029,2]
[400746252,1767810154141,-2500.0,0.00015029,2]
[400746253,1767810154302,-236.5096,0.00015029,2]
[400746254,1767810154448,-473.0192,0.00015029,2]
[400746255,1767810154512,-946.0384,0.00015029,2]
[400746256,1767810154644,-200.0,0.00014602,2]
[400746257,1767810154675,-1492.0768,0.00015029,2]
[400746258,1767810154730,-3384.1536,0.00015029,2]
[400746259,1767810155925,-3083.18525544,0.00015029,2]
[400746260,1767810156013,-148.51754456,0.00015029,2]
[400746261,1767810156023,-302.52168594,0.00015051,2]
[400746262,1767810156032,-500.0,0.00015073,2]
[400746263,1767810156041,-500.0,0.00015073,2]
[400746264,1767810156051,-500.0,0.00015073,2]
[400746265,1767810156061,-500.0,0.00015073,2]
[400746266,1767810156072,-500.0,0.00015073,2]
[400746267,1767810156081,-472.18937407,0.00015073,2]
[400746268,1767810156091,-500.0,0.00015073,2]
[400746269,1767810156100,-195.0,0.00015079,2]
[400746270,1767810156109,-5408.76219543,0.000151,2]
[400746271,1767810156136,-9053.9716,0.000151,2]
[400746272,1767810156209,-200.0,0.000151,2]
[400746273,1767810156243,-8107.9332,0.000151,2]
[400746274,1767810156261,-6615.8564,0.000151,2]
[400746275,1767810157254,-10000.01,0.000151,2]
[400746276,1767810178994,1035.86,0.000155,10]
[400746277,1767810179972,173.42,0.00011873,2]
[400746278,1767810180313,173.42,0.00014841,2]
[400746279,1767810182666,3779.565388,0.00015024,2]
[400746280,1767810184361,500.0,0.00015073,2]
[400746281,1767810192839,5373.604612,0.00015029,2]
[400746282,1767810192861,1330.339288,0.00015029,2]
[400746283,1767810198694,236.5096,0.00015029,2]
[400746284,1767810223168,842.4002,0.00015029,2]
[400746285,1767810245743,2631.90119943,0.00015,2]
[400746286,1767810261782,500.0,0.00015072,2]
[400746287,1767810261844,500.0,0.00015072,2]
[400746288,1767810261933,500.0,0.00015072,2]
[400746289,1767810261995,500.0,0.00015072,2]
[400746290,1767810262060,500.0,0.00015072,2]
[400746291,1767810262122,500.0,0.00015072,2]
[400746292,1767810262163,500.0,0.00015072,2]
[400746293,1767810262222,500.0,0.00015072,2]
[400746294,1767810262282,500.0,0.00015072,2]
[400746295,1767810262744,458.85971257,0.00015072,2]
[400746296,1767810262768,41.14028743,0.00015072,2]
[400746297,1767810262942,500.0,0.00015072,2]
[400746298,1767810263042,500.0,0.00015072,2]
[400746299,1767810263141,500.0,0.00015072,2]
[400746300,1767810263187,500.0,0.00015072,2]
[400746301,1767810263256,500.0,0.00015072,2]
[400746302,1767810263371,500.0,0.00015072,2]
[400746303,1767810263411,500.0,0.00015072,2]
[400746304,1767810263590,500.0,0.00015072,2]
[400746305,1767810263648,500.0,0.00015072,2]
[400746306,1767810263719,500.0,0.00015072,2]
[400746307,1767810263786,500.0,0.00015072,2]
[400746308,1767810263877,500.0,0.00015072,2]
[400746309,1767810263927,500.0,0.00015072,2]
[400746310,1767810264012,500.0,0.00015072,2]
[400746311,1767810264075,500.0,0.00015072,2]
[400746312,1767810264134,500.0,0.00015072,2]
[400746313,1767810264417,500.0,0.00015072,2]
[400746314,1767810267104,1458.86971257,0.00015029,2]
[400746315,1767810267126,4724.38178743,0.00015029,2]
[400746316,1767810272371,2500.0,0.00015029,2]
[400746317,1767810295780,-300.0,0.00015099,2]
[400746318,1767810295801,-235.74484923,0.00015099,2]
[400746319,1767810301016,-64.25515077,0.00015099,2]
[400746320,1767810301039,-155.97866211,0.00015099,2]
[400746321,1767810304068,-180.18133789,0.00015099,2]
[400746322,1767810304092,-119.81866211,0.00015099,2]
[400746324,1767810306825,500.0,0.00015073,2]
[400746325,1767810307180,501.12875633,0.00015073,2]
[400746326,1767810308270,500.0,0.00015073,2]
[400746327,1767810309841,-1080.18133789,0.00015099,2]
[400746328,1767810309865,-36.92294073,0.00015099,2]
[400746329,1767810312430,-229.00065208,0.00015099,2]
[400746330,1767810313851,500.0,0.00015073,2]
[400746331,1767810314035,500.0,0.00015073,2]
[400746332,1767810315886,274.49945624,0.00015073,2]
[400746333,1767810315909,225.50054376,0.00015073,2]
[400746334,1767810317679,500.0,0.00015073,2]
[400746335,1767810320668,485.97527636,0.00015073,2]
[400746336,1767810321688,500.0,0.00015073,2]
[400746337,1767810321747,1525.4449,0.00015029,2]
[400746338,1767810322460,500.0,0.00015073,2]
[400746339,1767810322539,500.0,0.00015073,2]
[400746340,1767810322885,169.0457871,0.00015073,2]
[400746342,1767810324593,500.0,0.00015073,2]
[400746343,1767810325721,162.472435,0.00015073,2]
[400746344,1767810326046,501.49821678,0.00015073,2]
[400746345,1767810327445,216.8908213,0.00015073,2]
[400746347,1767810331513,500.09802462,0.00015073,2]
[400746348,1767810332242,165.68588329,0.00015073,2]
[400746349,1767810340130,-34.07640719,0.00015099,2]
[400746350,1767810340154,-300.0,0.00015099,2]
[400746351,1767810340177,-15.92294073,0.000151,2]
[400746352,1767810365508,500.0,0.00015073,2]
[400746353,1767810365910,500.0,0.00015073,2]
[400746354,1767810373842,974.32216021,0.00015029,2]
[400746355,1767810378210,1573.07595158,0.00015029,2]
[400746356,1767810378233,695.76764842,0.00015029,2]
[400746357,1767810384641,170.46,7.526e-05,2]
[400746358,1767810429497,500.0,0.00015073,2]
[400746359,1767810429926,500.0,0.00015073,2]
[400746360,1767810430599,500.0,0.00015073,2]
[400746361,1767810434378,7633.78235158,0.00015029,2]
[400746362,1767810434402,10000.01,0.00015029,2]
[400746363,1767810434427,337.97174329,0.00015029,2]
[400746364,1767810439887,9357.35504013,0.00015029,2]
[400746368,1767810498818,304.68321658,0.00015023,2]
[400746369,1767810498842,254.75548242,0.00015023,2]
[400746370,1767810508846,515.72,0.00015119,3]
[400746371,1767810515469,9745.25451758,0.00014929,2]
[400746372,1767810515495,10000.01,0.00014929,2]
[400746373,1767810515519,10000.01,0.00014929,2]
[400746374,1767810515543,10000.01,0.00014929,2]
[400746375,1767810515568,10000.01,0.00014929,2]
[400746376,1767810515592,10000.01,0.00014929,2]
[400746377,1767810515617,10000.01,0.00014929,2]
[400746378,1767810515641,10000.01,0.00014929,2]
[400746379,1767810515665,10000.01,0.00014929,2]
[400746380,1767810516037,10000.01,0.00014929,2]
[400746381,1767810516538,-305.02621265,0.00014929,2]
[400746382,1767810531040,-29.73289534,0.00014929,2]
[400746383,1767810531413,-10000.01,0.00014929,2]
[400746384,1767810531432,-10000.01,0.00014929,2]
[400746385,1767810531562,-10000.01,0.00014929,2]
[400746386,1767810531580,-10000.01,0.00014929,2]
[400746387,1767810531616,-10000.01,0.00014929,2]
[400746388,1767810531655,-10000.01,0.00014929,2]
[400746389,1767810531717,-10000.01,0.00014929,2]
[400746390,1767810531912,-183.94017844,0.00014929,2]
[400746391,1767810541777,300.0,0.00014928,2]
[400746392,1767810543344,281.83931929,0.00014929,2]
[400746393,1767810544290,328.39570891,0.00014929,2]
[400746394,1767810544400,4950.3485623,0.00014929,2]
[400746395,1767810550405,-203.86,0.00014929,2]
[400746396,1767810551593,-162.68115368,0.00014929,2]
[400746397,1767810551679,3874.97124849,0.00014929,2]
[400746398,1767810553428,-278.61742704,0.00014929,2]
[400746399,1767810557005,-154.09944903,0.00014929,2]
[400746400,1767810558078,-268.72779371,0.00014929,2]
[400746401,1767810560201,-319.82522726,0.00014929,2]
[400746402,1767810561730,-167.07827963,0.00014929,2]
[400746403,1767810563970,-212.85233046,0.00014929,2]
[400746404,1767810568531,-336.25571161,0.00014929,2]
[400746405,1767810570091,-175.88721697,0.00014929,2]
[400746406,1767810573208,264.45516101,0.00014854,2]
[400746407,1767810573230,9479.20989399,0.00014854,2]
[400746408,1767810573555,-397.70178661,0.00014929,2]
[400746409,1767810575705,-215.56679287,0.00014929,2]
[400746410,1767810579427,-265.15810212,0.00014929,2]
[400746411,1767810582254,-215.73776141,0.00014929,2]
[400746412,1767810583554,-321.13614272,0.00014929,2]
[400746413,1767810585089,-161.34487945,0.00014929,2]
[400746414,1767810586665,-886.73142052,0.00014929,2]
[400746415,1767810590690,-300.0,0.00014929,2]
[400746416,1767810592611,-237.23316124,0.00014929,2]
[400746417,1767810594169,-501.08006467,0.00014929,2]
[400746418,1767810594578,-520.80010601,0.00014929,2]
[400746419,1767810597038,-10000.01,0.00014929,2]
[400746420,1767810597175,-10000.01,0.00014929,2]
[400746421,1767810597303,-10000.01,0.00014929,2]
[400746422,1767810597421,-10000.01,0.00014929,2]
[400746423,1767810597537,-10000.01,0.00014929,2]
[400746424,1767810597740,-10000.01,0.00014929,2]
[400746425,1767810597854,-10000.01,0.00014929,2]
[400746426,1767810598555,-10000.01,0.00014929,2]
[400746427,1767810598671,-10000.01,0.00014929,2]
[400746428,1767810601254,-303.37599486,0.00014929,2]
[400746429,1767810601355,-10000.01,0.00014929,2]
[400746430,1767810601431,-10000.01,0.00014929,2]
[400746431,1767810601456,-300.0,0.00014928,2]
[400746432,1767810601465,-9700.01,0.00014929,2]
[400746433,1767810619010,-300.0,0.00014928,2]
[400746434,1767810619040,-1200.0,0.00014928,2]
[400746435,1767810619070,-150.0,0.00014928,2]
[400746436,1767810619100,-291.0,0.00014928,2]
[400746437,1767810621100,6118.01,0.00014919,2]